fUST/lending_fUST_20250727
["ID","MTS","AMOUNT","RATE_DAILY","PERIOD"]
[375305512,1753620681913,-515.74,0.00023013,2]
[375305513,1753620681923,-460.0,0.00023013,2]
[375305514,1753620681933,-460.0,0.00023013,2]
[375305515,1753620681942,-460.0,0.00023013,2]
[375305516,1753620681951,-460.0,0.00023013,2]
[375305517,1753620681961,-460.0,0.00023013,2]
[375305518,1753620681970,-282.8449,0.00023013,2]
[375305519,1753620681979,-544.17,0.00023013,2]
[375305520,1753620681988,-460.0,0.00023013,2]
[375305521,1753620681998,-1099.52,0.00023013,2]
[375305522,1753620682007,-460.0,0.00023013,2]
[375305523,1753620682016,-460.0,0.00023013,2]
[375305524,1753620682026,-1185.8,0.00023013,2]
[375305525,1753620682035,-768.04,0.00023013,2]
[375305526,1753620682044,-533.83,0.00023013,2]
[375305527,1753620682054,-460.0,0.00023013,2]
[375305528,1753620682063,-460.0,0.00023013,2]
[375305529,1753620682072,-460.0,0.00023013,2]
[375305530,1753620682081,-2023.68,0.00023013,2]
[375305531,1753620682091,-1324.75,0.00023013,2]
[375305532,1753620682100,-460.0,0.00023013,2]
[375305533,1753620682109,-460.0,0.00023013,2]
[375305534,1753620682119,-611.76,0.00023013,2]
[375305535,1753620682128,-460.0,0.00023013,2]
[375305536,1753620682137,-460.0,0.00023013,2]
[375305537,1753620682147,-542.66,0.00023013,2]
[375305538,1753620682157,-460.0,0.00023013,2]
[375305539,1753620682166,-1549.64,0.00023013,2]
[375305540,1753620682175,-460.0,0.00023013,2]
[375305541,1753620682185,-460.0,0.00023013,2]
[375305542,1753620682195,-460.0,0.00023013,2]
[375305543,1753620682203,-1136.47,0.00023013,2]
[375305544,1753620682213,-466.98506485,0.00023013,2]
[375305545,1753620682222,-566.39,0.00023013,2]
[375305546,1753620682232,-579.66,0.00023013,2]
[375305547,1753620682242,-460.0,0.00023013,2]
[375305548,1753620682251,-460.0,0.00023013,2]
[375305549,1753620682261,-460.0,0.00023013,2]
[375305550,1753620682270,-625.45,0.00023013,2]
[375305551,1753620682279,-460.0,0.00023013,2]
[375305552,1753620682288,-460.0,0.00023013,2]
[375305553,1753620682297,-686.29,0.00023013,2]
[375305554,1753620682307,-181.03,0.00023013,2]
[375305555,1753620682316,-1310.78,0.00023013,2]
[375305556,1753620682326,-460.0,0.00023013,2]
[375305557,1753620682335,-180.16,0.00023013,2]
[375305558,1753620682344,-460.0,0.00023013,2]
[375305559,1753620682354,-460.0,0.00023013,2]
[375305560,1753620682363,-460.0,0.00023013,2]
[375305561,1753620682372,-460.0,0.00023013,2]
[375305562,1753620682382,-1459.2,0.00023013,2]
[375305563,1753620682391,-460.0,0.00023013,2]
[375305564,1753620682400,-460.0,0.00023013,2]
[375305565,1753620682409,-460.0,0.00023013,2]
[375305566,1753620682419,-460.0,0.00023013,2]
[375305567,1753620682428,-460.0,0.00023013,2]
[375305568,1753620682437,-481.84,0.00023013,2]
[375305569,1753620682446,-460.0,0.00023013,2]
[375305570,1753620682455,-460.0,0.00023013,2]
[375305571,1753620682464,-460.0,0.00023013,2]
[375305572,1753620682473,-514.41,0.0002314,2]
[375305573,1753620682483,-514.41,0.0002314,4]
[375305574,1753620682492,-724.98,0.000232,7]
[375305575,1753620682501,-2587.49,0.000232,7]
[375305576,1753620682511,-746.34,0.00023204,7]
[375305577,1753620682520,-1455.08570676,0.0002321,8]
[375305578,1753620682530,-514.41,0.00023225,3]
[375305579,1753620682540,-554.9,0.00023233,5]
[375305580,1753620682549,-514.41,0.0002324,7]
[375305581,1753620682558,-514.41,0.0002324,3]
[375305582,1753620682567,-460.0,0.00023287,2]
[375305583,1753620682577,-460.0,0.00023287,2]
[375305584,1753620682586,-521.03,0.00023287,2]
[375305585,1753620682595,-460.0,0.00023287,2]
[375305586,1753620682604,-460.0,0.00023287,2]
[375305587,1753620682613,-460.0,0.00023287,2]
[375305588,1753620682622,-460.0,0.00023287,2]
[375305589,1753620682634,-1415.69,0.00023287,2]
[375305590,1753620682643,-736.5,0.00023287,2]
[375305591,1753620682652,-460.0,0.00023287,2]
[375305592,1753620682662,-460.0,0.00023287,2]
[375305593,1753620682671,-899.66,0.00023287,2]
[375305594,1753620682681,-460.0,0.00023287,2]
[375305595,1753620682690,-269.46138922,0.00023287,2]
[375305596,1753620682830,-548.23,0.00023287,2]
[375305597,1753620682840,-460.0,0.00023287,2]
[375305598,1753620682849,-517.82,0.00023287,2]
[375305599,1753620682858,-460.0,0.00023287,2]
[375305600,1753620682867,-460.0,0.00023287,2]
[375305601,1753620682877,-1006.65,0.00023287,2]
[375305602,1753620682886,-5428.8,0.00023287,2]
[375305603,1753620682895,-515.74,0.00023287,2]
[375305604,1753620682904,-460.0,0.00023287,2]
[375305605,1753620682914,-460.0,0.00023287,2]
[375305606,1753620682923,-460.0,0.00023287,2]
[375305607,1753620682933,-460.0,0.00023287,2]
[375305608,1753620682943,-460.0,0.00023287,2]
[375305609,1753620682953,-1099.52,0.00023287,2]
[375305610,1753620682963,-460.0,0.00023287,2]
[375305611,1753620682972,-768.04,0.00023287,2]
[375305612,1753620682981,-1185.8,0.00023287,2]
[375305613,1753620682991,-533.83,0.00023287,2]
[375305614,1753620683000,-460.0,0.00023287,2]
[375305615,1753620683009,-460.0,0.00023287,2]
[375305616,1753620683018,-460.0,0.00023287,2]
[375305617,1753620683028,-2023.68,0.00023287,2]
[375305618,1753620683037,-460.0,0.00023287,2]
[375305619,1753620683047,-1324.75,0.00023287,2]
[375305620,1753620683056,-460.0,0.00023287,2]
[375305621,1753620683066,-611.76,0.00023287,2]
[375305622,1753620683076,-220.3,0.00023287,2]
[375305623,1753620683085,-460.0,0.00023287,2]
[375305624,1753620683094,-542.66,0.00023287,2]
[375305625,1753620683104,-460.0,0.00023287,2]
[375305626,1753620683114,-1549.64,0.00023287,2]
[375305627,1753620683123,-460.0,0.00023287,2]
[375305628,1753620683133,-460.0,0.00023287,2]
[375305629,1753620683143,-460.0,0.00023287,2]
[375305630,1753620683153,-1136.47,0.00023287,2]
[375305631,1753620683162,-566.39,0.00023287,2]
[375305632,1753620683172,-579.66,0.00023287,2]
[375305633,1753620683181,-460.0,0.00023287,2]
[375305634,1753620683191,-460.0,0.00023287,2]
[375305635,1753620683200,-460.0,0.00023287,2]
[375305636,1753620683209,-625.45,0.00023287,2]
[375305637,1753620683219,-460.0,0.00023287,2]
[375305638,1753620683228,-151.0,0.00023287,7]
[375305639,1753620683237,-460.0,0.00023287,2]
[375305640,1753620683246,-686.29,0.00023287,2]
[375305641,1753620683256,-1310.78,0.00023287,2]
[375305642,1753620683265,-460.0,0.00023287,2]
[375305643,1753620683274,-460.0,0.00023287,2]
[375305644,1753620683283,-460.0,0.00023287,2]
[375305645,1753620683293,-460.0,0.00023287,2]
[375305646,1753620683302,-460.0,0.00023287,2]
[375305647,1753620683311,-1459.2,0.00023287,2]
[375305648,1753620683320,-460.0,0.00023287,2]
[375305649,1753620683330,-460.0,0.00023287,2]
[375305650,1753620683339,-460.0,0.00023287,2]
[375305651,1753620683348,-481.84,0.00023287,2]
[375305652,1753620683358,-474.0,0.00023287,2]
[375305653,1753620683367,-460.0,0.00023287,2]
[375305654,1753620683378,-460.0,0.00023287,2]
[375305655,1753620683387,-460.0,0.00023287,2]
[375305656,1753620683398,-3542.98,0.000233,7]
[375305657,1753620683407,-746.35,0.00023304,2]
[375305658,1753620683416,-514.41,0.00023325,2]
[375305659,1753620683426,-514.41,0.0002334,3]
[375305660,1753620683437,-514.41,0.0002334,2]
[375305661,1753620683446,-21141.04,0.000234,2]
[375305662,1753620683455,-1455.08570676,0.00023417,9]
[375305663,1753620683465,-514.42,0.00023425,7]
[375305664,1753620683474,-514.41,0.0002344,2]
[375305665,1753620683483,-514.41,0.0002344,3]
[375305666,1753620683493,-414.89,0.00023442,2]
[375305667,1753620683502,-174.58,0.00023458,2]
[375305668,1753620683511,-25000.0,0.00023471,2]
[375305669,1753620683521,-307.27167015,0.00023474,2]
[375305670,1753620683531,-477.07289566,0.000235,3]
[375305671,1753620683540,-514.41,0.0002354,5]
[375305672,1753620683549,-514.41,0.0002354,5]
[375305673,1753620683558,-460.0,0.00023561,2]
[375305674,1753620683567,-460.0,0.00023561,2]
[375305675,1753620683577,-460.0,0.00023561,2]
[375305676,1753620683586,-521.03,0.00023561,2]
[375305677,1753620683595,-460.0,0.00023561,2]
[375305678,1753620683604,-460.0,0.00023561,2]
[375305679,1753620683613,-460.0,0.00023561,2]
[375305680,1753620683623,-758.85823304,0.00023561,2]
[375305681,1753620683810,-656.83176696,0.00023561,2]
[375305682,1753620683819,-736.5,0.00023561,2]
[375305683,1753620683828,-200.0,0.00023561,2]
[375305684,1753620683837,-200.0,0.00023561,2]
[375305685,1753620683847,-200.0,0.00023561,2]
[375305686,1753620683856,-200.0,0.00023561,2]
[375305687,1753620683866,-200.0,0.00023561,2]
[375305688,1753620683875,-312.48441259,0.00023561,2]
[375305689,1753620683885,-584.087149,0.00023561,7]
[375305690,1753620683894,-460.0,0.00023561,2]
[375305691,1753620683903,-460.0,0.00023561,2]
[375305692,1753620683913,-899.66,0.00023561,2]
[375305693,1753620683922,-460.0,0.00023561,2]
[375305694,1753620683933,-548.23,0.00023561,2]
[375305695,1753620683942,-460.0,0.00023561,2]
[375305696,1753620683951,-517.82,0.00023561,2]
[375305697,1753620683962,-460.0,0.00023561,2]
[375305698,1753620683971,-1006.65,0.00023561,2]
[375305699,1753620683980,-5428.8,0.00023561,2]
[375305700,1753620683990,-515.74,0.00023561,2]
[375305701,1753620683999,-460.0,0.00023561,2]
[375305702,1753620684008,-460.0,0.00023561,2]
[375305703,1753620684018,-185.43,0.00023561,2]
[375305704,1753620684027,-313.86264947,0.00023561,2]
[375305705,1753620684036,-200.81,0.00023561,2]
[375305706,1753620684046,-1099.52,0.00023561,2]
[375305707,1753620684055,-460.0,0.00023561,2]
[375305708,1753620684064,-768.04,0.00023561,2]
[375305709,1753620684074,-1185.8,0.00023561,2]
[375305710,1753620684083,-533.83,0.00023561,2]
[375305711,1753620684092,-460.0,0.00023561,2]
[375305712,1753620684101,-198.89,0.00023561,2]
[375305713,1753620684110,-460.0,0.00023561,2]
[375305714,1753620684119,-2023.68,0.00023561,2]
[375305715,1753620684128,-460.0,0.00023561,2]
[375305716,1753620684137,-1324.75,0.00023561,2]
[375305717,1753620684147,-611.76,0.00023561,2]
[375305718,1753620684156,-460.0,0.00023561,2]
[375305719,1753620684166,-542.66,0.00023561,2]
[375305720,1753620684175,-460.0,0.00023561,2]
[375305721,1753620684186,-1549.64,0.00023561,2]
[375305722,1753620684195,-460.0,0.00023561,2]
[375305723,1753620684204,-388.2,0.00023561,2]
[375305724,1753620684213,-460.0,0.00023561,2]
[375305725,1753620684222,-1136.47,0.00023561,2]
[375305726,1753620684231,-566.39,0.00023561,2]
[375305727,1753620684241,-579.66,0.00023561,2]
[375305728,1753620684251,-460.0,0.00023561,2]
[375305729,1753620684261,-460.0,0.00023561,2]
[375305730,1753620684271,-346.04,0.00023561,2]
[375305731,1753620684280,-625.45,0.00023561,2]
[375305732,1753620684290,-496.42,0.00023561,2]
[375305733,1753620684299,-460.0,0.00023561,2]
[375305734,1753620684308,-686.29,0.00023561,2]
[375305735,1753620684318,-1310.78,0.00023561,2]
[375305736,1753620684327,-460.0,0.00023561,2]
[375305737,1753620684336,-460.0,0.00023561,2]
[375305738,1753620684346,-460.0,0.00023561,2]
[375305739,1753620684356,-460.0,0.00023561,2]
[375305740,1753620684366,-460.0,0.00023561,2]
[375305741,1753620684375,-1459.2,0.00023561,2]
[375305742,1753620684384,-460.0,0.00023561,2]
[375305743,1753620684394,-460.0,0.00023561,2]
[375305744,1753620684403,-460.0,0.00023561,2]
[375305745,1753620684412,-481.84,0.00023561,2]
[375305746,1753620684421,-460.0,0.00023561,2]
[375305747,1753620684430,-460.0,0.00023561,2]
[375305748,1753620684440,-460.0,0.00023561,2]
[375305749,1753620684450,-312.16666667,0.000236,7]
[375305750,1753620684459,-151.0,0.00023624,7]
[375305751,1753620684468,-151.0,0.00023624,7]
[375305752,1753620684477,-1455.08570676,0.00023624,9]
[375305753,1753620684486,-514.41,0.0002364,7]
[375305754,1753620684495,-600.0,0.00023656,2]
[375305755,1753620684504,-554.9,0.00023665,6]
[375305756,1753620684513,-514.41,0.0002374,4]
[375305757,1753620684523,-172.29839479,0.00023753,2]
[375305758,1753620684532,-172.29839479,0.00023753,2]
[375305759,1753620684542,-1455.08570676,0.00023831,10]
[375305760,1753620684551,-383.55318024,0.00023835,2]
[375305761,1753620684559,-460.0,0.00023835,2]
[375305762,1753620684569,-463.13712576,0.00023835,2]
[375305763,1753620684578,-542.7,0.00023835,2]
[375305764,1753620684587,-521.03,0.00023835,2]
[375305765,1753620684597,-467.18549892,0.00023835,2]
[375305766,1753620684606,-460.0,0.00023835,2]
[375305767,1753620684615,-305.9298994,0.00023835,2]
[375305768,1753620684628,-1415.69,0.00023835,2]
[375305769,1753620684637,-736.5,0.00023835,2]
[375305770,1753620684646,-460.0,0.00023835,2]
[375305771,1753620684655,-460.0,0.00023835,2]
[375305772,1753620684665,-899.66,0.00023835,2]
[375305773,1753620684675,-460.0,0.00023835,2]
[375305774,1753620684684,-548.23,0.00023835,2]
[375305775,1753620684693,-460.0,0.00023835,2]
[375305776,1753620684703,-517.82,0.00023835,2]
[375305777,1753620684714,-460.0,0.00023835,2]
[375305778,1753620684723,-1006.65,0.00023835,2]
[375305779,1753620684733,-5428.8,0.00023835,2]
[375305780,1753620684743,-515.74,0.00023835,2]
[375305781,1753620684752,-336.0,0.00023835,2]
[375305782,1753620684761,-460.0,0.00023835,2]
[375305783,1753620684770,-1099.52,0.00023835,2]
[375305784,1753620684780,-460.0,0.00023835,2]
[375305785,1753620684790,-768.04,0.00023835,2]
[375305786,1753620684800,-1185.8,0.00023835,2]
[375305787,1753620684810,-533.83,0.00023835,2]
[375305788,1753620684820,-460.0,0.00023835,2]
[375305789,1753620684829,-460.0,0.00023835,2]
[375305790,1753620684839,-2023.68,0.00023835,2]
[375305791,1753620684850,-460.0,0.00023835,2]
[375305792,1753620684860,-1324.75,0.00023835,2]
[375305793,1753620684870,-611.76,0.00023835,2]
[375305794,1753620684880,-460.0,0.00023835,2]
[375305795,1753620684890,-542.66,0.00023835,2]
[375305796,1753620684900,-460.0,0.00023835,2]
[375305797,1753620684910,-1549.64,0.00023835,2]
[375305798,1753620684919,-460.0,0.00023835,2]
[375305799,1753620684929,-460.0,0.00023835,2]
[375305800,1753620684939,-1136.47,0.00023835,2]
[375305801,1753620684951,-566.39,0.00023835,2]
[375305802,1753620684961,-579.66,0.00023835,2]
[375305803,1753620684971,-460.0,0.00023835,2]
[375305804,1753620684981,-460.0,0.00023835,2]
[375305805,1753620684990,-625.45,0.00023835,2]
[375305806,1753620684999,-460.0,0.00023835,2]
[375305807,1753620685009,-686.29,0.00023835,2]
[375305808,1753620685019,-1310.78,0.00023835,2]
[375305809,1753620685029,-460.0,0.00023835,2]
[375305810,1753620685038,-336.74,0.00023835,2]
[375305811,1753620685166,-460.0,0.00023835,2]
[375305812,1753620685177,-460.0,0.00023835,2]
[375305813,1753620685189,-460.0,0.00023835,2]
[375305814,1753620685199,-1459.2,0.00023835,2]
[375305815,1753620685208,-460.0,0.00023835,2]
[375305816,1753620685218,-460.0,0.00023835,2]
[375305817,1753620685227,-460.0,0.00023835,2]
[375305818,1753620685236,-481.84,0.00023835,2]
[375305819,1753620685246,-460.0,0.00023835,2]
[375305820,1753620685256,-270.04,0.00023835,2]
[375305821,1753620685266,-460.0,0.00023835,2]
[375305822,1753620685276,-514.41,0.0002384,6]
[375305823,1753620685287,-408.0247629,0.00023845,2]
[375305824,1753620685297,-2597.6316742,0.000239,2]
[375305825,1753620685308,-174.58,0.00023944,2]
[375305826,1753620685319,-526.50274803,0.00024,7]
[375305827,1753620685330,-25000.0,0.00024019,2]
[375305828,1753620685340,-1455.08570676,0.00024038,10]
[375305829,1753620685349,-172.29839479,0.00024055,2]
[375305830,1753620685359,-172.29839479,0.00024055,2]
[375305831,1753620685370,-172.29839479,0.00024055,2]
[375305832,1753620685382,-554.9,0.00024096,6]
[375305833,1753620685392,-460.0,0.00024109,2]
[375305834,1753620685403,-542.7,0.00024109,2]
[375305835,1753620685412,-521.03,0.00024109,2]
[375305836,1753620685422,-505.77520154,0.00024109,2]
[375305837,1753620685433,-1415.69,0.00024109,2]
[375305838,1753620685442,-736.5,0.00024109,2]
[375305839,1753620685452,-460.0,0.00024109,2]
[375305840,1753620685462,-460.0,0.00024109,2]
[375305841,1753620685471,-899.66,0.00024109,2]
[375305842,1753620685481,-460.0,0.00024109,2]
[375305843,1753620685491,-548.23,0.00024109,2]
[375305844,1753620685501,-596.49,0.00024109,2]
[375305845,1753620685510,-517.82,0.00024109,2]
[375305846,1753620685520,-472.59,0.00024109,2]
[375305847,1753620685529,-1006.65,0.00024109,2]
[375305848,1753620685539,-5428.8,0.00024109,2]
[375305849,1753620685548,-515.74,0.00024109,2]
[375305850,1753620685558,-460.0,0.00024109,2]
[375305851,1753620685567,-1099.52,0.00024109,2]
[375305852,1753620685578,-460.0,0.00024109,2]
[375305853,1753620685587,-768.04,0.00024109,2]
[375305854,1753620685596,-1185.8,0.00024109,2]
[375305855,1753620685606,-533.83,0.00024109,2]
[375305856,1753620685615,-460.0,0.00024109,2]
[375305857,1753620685629,-460.0,0.00024109,2]
[375305858,1753620685646,-2023.68,0.00024109,2]
[375305859,1753620685656,-520.8,0.00024109,2]
[375305860,1753620685666,-1324.75,0.00024109,2]
[375305861,1753620685675,-611.76,0.00024109,2]
[375305862,1753620685685,-460.0,0.00024109,2]
[375305863,1753620685695,-542.66,0.00024109,2]
[375305864,1753620685703,-1549.64,0.00024109,2]
[375305865,1753620685713,-460.0,0.00024109,2]
[375305866,1753620685722,-1136.47,0.00024109,2]
[375305867,1753620685731,-566.39,0.00024109,2]
[375305868,1753620685741,-579.66,0.00024109,2]
[375305869,1753620685750,-460.0,0.00024109,2]
[375305870,1753620685759,-460.0,0.00024109,2]
[375305871,1753620685769,-625.45,0.00024109,2]
[375305872,1753620685778,-179.76,0.00024109,2]
[375305873,1753620685788,-686.29,0.00024109,2]
[375305874,1753620685797,-1310.78,0.00024109,2]
[375305875,1753620685807,-460.0,0.00024109,2]
[375305876,1753620685824,-342.31612593,0.00024109,2]
[375305877,1753620685837,-460.0,0.00024109,2]
[375305878,1753620685847,-460.0,0.00024109,2]
[375305879,1753620685857,-1459.2,0.00024109,2]
[375305880,1753620685867,-460.0,0.00024109,2]
[375305881,1753620685877,-460.0,0.00024109,2]
[375305882,1753620685887,-460.0,0.00024109,2]
[375305883,1753620685897,-481.84,0.00024109,2]
[375305884,1753620685907,-460.0,0.00024109,2]
[375305885,1753620685918,-460.0,0.00024109,2]
[375305886,1753620685928,-304.37602874,0.00024238,5]
[375305887,1753620685938,-1455.08570676,0.00024245,10]
[375305888,1753620685949,-3285.261493,0.00024314,2]
[375305889,1753620685959,-600.0,0.00024318,2]
[375305890,1753620685969,-484.04,0.00024343,2]
[375305891,1753620685979,-460.0,0.00024383,2]
[375305892,1753620685990,-542.7,0.00024383,2]
[375305893,1753620686000,-521.03,0.00024383,2]
[375305894,1753620686009,-1415.69,0.00024383,2]
[375305895,1753620686019,-736.5,0.00024383,2]
[375305896,1753620686029,-460.0,0.00024383,2]
[375305897,1753620686039,-460.0,0.00024383,2]
[375305898,1753620686049,-899.66,0.00024383,2]
[375305899,1753620686059,-460.0,0.00024383,2]
[375305900,1753620686071,-548.23,0.00024383,2]
[375305901,1753620686081,-517.82,0.00024383,2]
[375305902,1753620686090,-1006.65,0.00024383,2]
[375305903,1753620686100,-5428.8,0.00024383,2]
[375305904,1753620686110,-515.74,0.00024383,2]
[375305905,1753620686120,-517.93,0.00024383,2]
[375305906,1753620686129,-1099.52,0.00024383,2]
[375305907,1753620686139,-460.0,0.00024383,2]
[375305908,1753620686149,-768.04,0.00024383,2]
[375305909,1753620686159,-1185.8,0.00024383,2]
[375305910,1753620686168,-533.83,0.00024383,2]
[375305911,1753620686178,-212.35,0.00024383,2]
[375305912,1753620686190,-460.0,0.00024383,2]
[375305913,1753620686199,-2023.68,0.00024383,2]
[375305914,1753620686209,-1324.75,0.00024383,2]
[375305915,1753620686219,-611.76,0.00024383,2]
[375305916,1753620686228,-460.0,0.00024383,2]
[375305917,1753620686237,-542.66,0.00024383,2]
[375305918,1753620686247,-1549.64,0.00024383,2]
[375305919,1753620686257,-460.0,0.00024383,2]
[375305920,1753620686266,-1136.47,0.00024383,2]
[375305921,1753620686275,-566.39,0.00024383,2]
[375305922,1753620686286,-460.0,0.00024383,2]
[375305923,1753620686295,-579.66,0.00024383,2]
[375305924,1753620686305,-225.12,0.00024383,2]
[375305925,1753620686315,-625.45,0.00024383,2]
[375305926,1753620686325,-686.29,0.00024383,2]
[375305927,1753620686335,-1310.78,0.00024383,2]
[375305928,1753620686345,-460.0,0.00024383,2]
[375305929,1753620686355,-460.0,0.00024383,2]
[375305930,1753620686365,-460.0,0.00024383,2]
[375305931,1753620686375,-460.0,0.00024383,2]
[375305932,1753620686385,-1459.2,0.00024383,2]
[375305933,1753620686395,-460.0,0.00024383,2]
[375305934,1753620686404,-460.0,0.00024383,2]
[375305935,1753620686413,-481.84,0.00024383,2]
[375305936,1753620686422,-275.89,0.00024383,2]
[375305937,1753620686432,-460.0,0.00024383,2]
[375305938,1753620686446,-172.29839475,0.00024384,2]
[375305939,1753620686456,-172.29839479,0.00024384,2]
[375305940,1753620686465,-172.29839479,0.00024384,2]
[375305941,1753620686475,-172.29839479,0.00024384,2]
[375305942,1753620686485,-724.98,0.000244,7]
[375305943,1753620686496,-2587.49,0.000244,7]
[375305944,1753620686505,-174.58,0.00024429,2]
[375305945,1753620686515,-1455.08570676,0.00024452,11]
[375305946,1753620686524,-554.9,0.00024528,6]
[375305947,1753620686534,-3285.261493,0.00024532,2]
[375305948,1753620686543,-257.0,0.00024548,2]
[375305949,1753620686553,-156.137012,0.00024571,2]
[375305950,1753620686563,-156.137012,0.00024581,9]
[375305951,1753620686572,-156.137012,0.00024592,7]
[375305952,1753620686581,-3542.98,0.000246,7]
[375305953,1753620686591,-600.0,0.0002461,2]
[375305954,1753620686600,-500.0,0.00024647,2]
[375305955,1753620686609,-460.0,0.00024657,2]
[375305956,1753620686618,-1415.69,0.00024657,2]
[375305957,1753620686629,-736.5,0.00024657,2]
[375305958,1753620686639,-606.01,0.00024657,2]
[375305959,1753620686648,-460.0,0.00024657,2]
[375305960,1753620686657,-899.66,0.00024657,2]
[375305961,1753620686667,-394.57,0.00024657,2]
[375305962,1753620686677,-548.23,0.00024657,2]
[375305963,1753620686688,-517.82,0.00024657,2]
[375305964,1753620686698,-1006.65,0.00024657,2]
[375305965,1753620686711,-5428.8,0.00024657,2]
[375305966,1753620686721,-515.74,0.00024657,2]
[375305967,1753620686731,-1099.52,0.00024657,2]
[375305968,1753620686740,-460.0,0.00024657,2]
[375305969,1753620686750,-768.04,0.00024657,2]
[375305970,1753620686759,-1185.8,0.00024657,2]
[375305971,1753620686769,-533.83,0.00024657,2]
[375305972,1753620686779,-460.0,0.00024657,2]
[375305973,1753620686788,-2023.68,0.00024657,2]
[375305974,1753620686799,-1324.75,0.00024657,2]
[375305975,1753620686809,-611.76,0.00024657,2]
[375305976,1753620686819,-460.0,0.00024657,2]
[375305977,1753620686829,-542.66,0.00024657,2]
[375305978,1753620686838,-1549.64,0.00024657,2]
[375305979,1753620686848,-460.0,0.00024657,2]
[375305980,1753620686858,-1136.47,0.00024657,2]
[375305981,1753620686868,-566.39,0.00024657,2]
[375305982,1753620686878,-460.0,0.00024657,2]
[375305983,1753620686889,-579.66,0.00024657,2]
[375305984,1753620686898,-625.45,0.00024657,2]
[375305985,1753620686910,-686.29,0.00024657,2]
[375305986,1753620686920,-1310.78,0.00024657,2]
[375305987,1753620686930,-460.0,0.00024657,2]
[375305988,1753620686940,-460.0,0.00024657,2]
[375305989,1753620686950,-460.0,0.00024657,2]
[375305990,1753620686959,-196.13128799,0.00024657,2]
[375305991,1753620686968,-1459.2,0.00024657,2]
[375305992,1753620686978,-460.0,0.00024657,2]
[375305993,1753620686988,-460.0,0.00024657,2]
[375305994,1753620686997,-481.84,0.00024657,2]
[375305995,1753620687006,-460.0,0.00024657,2]
[375305996,1753620687018,-300.43772288,0.00024658,2]
[375305997,1753620687028,-380.0,0.00024658,2]
[375305998,1753620687038,-1455.08570676,0.00024659,11]
[375305999,1753620687047,-150.0,0.00024661,30]
[375306000,1753620687057,-548.06160105,0.00024682,2]
[375306001,1753620687066,-500.0,0.00024682,2]
[375306002,1753620687076,-172.29839479,0.00024685,2]
[375306003,1753620687085,-172.29839479,0.00024685,2]
[375306004,1753620687095,-172.29839479,0.00024685,2]
[375306005,1753620687105,-21141.04,0.000247,2]
[375306006,1753620687114,-500.0,0.00024707,2]
[375306007,1753620687124,-3285.261493,0.00024721,2]
[375306008,1753620687134,-500.0,0.00024743,2]
[375306009,1753620687144,-230.0,0.00024746,2]
[375306010,1753620687153,-600.0,0.00024752,2]
[375306011,1753620687163,-600.0,0.00024756,2]